bitfinex/quotes_ETHUSD_20240714
["timestamp","ask_amount","ask_price","bid_price","bid_amount"]
[1720958519667,2.61553014,3212.5,3212.2,2.53800958]
[1720958521242,3.11024315,3212.5,3212.2,2.53800958]
[1720958521467,2.3316,3212.4,3212.2,0.04750958]
[1720958521677,4.62174105,3212.3,3212.2,0.04750958]
[1720958521976,2.3316,3212.3,3212.2,0.04751353]
[1720958522262,2.3316,3212.3,3212.0,2.49065]
[1720958522439,2.3316,3212.3,3212.2,0.04751353]
[1720958522634,2.3316,3212.3,3212.0,2.49065]
[1720958522847,2.3316,3212.3,3212.2,0.04752347]
[1720958523050,2.3316,3212.3,3212.0,2.49065]
[1720958523260,2.3316,3212.3,3212.2,0.04752347]
[1720958523465,2.3316,3212.3,3212.1,0.04763084]
[1720958523630,2.3316,3212.3,3212.2,0.04752347]
[1720958523829,2.3316,3212.3,3212.0,2.49065]
[1720958524061,4.62181685,3212.3,3212.0,2.49065]
[1720958524667,2.3316,3212.3,3212.0,2.49065]
[1720958524869,4.62178238,3212.3,3212.0,2.49065]
[1720958525229,4.6217822,3212.3,3212.0,2.49065]
[1720958526159,2.2901822,3212.2,3211.8,5.4908]
[1720958526369,1.96309872,3211.9,3211.8,2.4908]
[1720958527330,1.96309872,3211.9,3211.8,4.017973]
[1720958527535,4.39249872,3211.9,3211.8,5.4908]
[1720958527742,4.39255743,3211.9,3211.7,3.0]
[1720958527969,2.4294,3211.9,3211.7,3.0]
[1720958528150,4.39255395,3211.9,3211.7,5.49089]
[1720958531062,4.39255395,3211.9,3211.8,3.0]
[1720958531235,4.39255395,3211.9,3211.7,2.49089]
[1720958531435,4.39212381,3211.9,3211.7,2.49089]
[1720958532073,4.39212381,3211.9,3211.4,2.49109]
[1720958532283,1.96272381,3211.7,3211.4,2.49109]
[1720958532483,1.96272381,3211.7,3211.4,3.06351197]
[1720958532791,1.96272381,3211.7,3211.5,2.49104]
[1720958534636,1.96272381,3211.7,3211.4,2.49109]
[1720958535053,2.4294,3211.9,3211.4,2.49109]
[1720958535357,1.96208752,3211.7,3211.4,2.49109]
[1720958537881,1.96166565,3211.7,3211.4,2.49109]
[1720958539075,1.96166565,3211.7,3211.5,0.04830793]
[1720958541057,2.4294,3211.9,3211.5,0.04830793]
[1720958541393,1.96160637,3211.7,3211.5,0.04830793]
[1720958544401,2.4294,3211.9,3211.5,0.04830793]
[1720958544565,1.961543,3211.7,3211.5,0.04830793]
[1720958545799,1.961543,3211.7,3211.6,0.0482651]
[1720958546170,1.961543,3211.7,3211.4,2.49109]
[1720958546474,1.961543,3211.7,3211.5,0.04837251]
[1720958547753,1.961306,3211.7,3211.5,0.04837251]
[1720958547958,4.92472094,3211.6,3211.2,7.29]
[1720958548267,12.20245669,3211.4,3211.3,0.05904137]
[1720958548470,10.46376,3211.4,3211.3,0.05904137]
[1720958548680,10.46376,3211.4,3210.1,7.29]
[1720958548681,2.4404,3210.5,3210.1,7.29]
[1720958549015,1.96137684,3210.4,3209.8,2.49235]
[1720958549325,1.6344887,3210.0,3209.7,7.29]
[1720958549810,1.6344887,3209.9,3209.7,7.29]
[1720958550318,1.6344887,3210.0,3209.7,7.29]
[1720958550615,1.6344887,3210.1,3209.7,7.29]
[1720958550923,1.6316498,3210.0,3209.7,7.29]
[1720958551271,2.49206,3210.2,3209.7,7.29]
[1720958551272,1.6316498,3210.1,3209.7,7.29]
[1720958552385,4.1237098,3210.2,3209.7,7.29]
[1720958554002,3.15362098,3210.2,3209.8,0.04770262]
[1720958554395,3.15362098,3210.2,3209.7,7.29]
[1720958554586,3.15362098,3210.2,3209.8,0.04770262]
[1720958554786,3.15362098,3210.2,3209.6,19.47]
[1720958554997,3.15362098,3210.2,3209.7,0.04781014]
[1720958555224,0.48600776,3210.1,3209.7,0.04781014]
[1720958555424,0.07788826,3210.0,3209.7,0.04781014]
[1720958558642,2.4404,3209.9,3209.7,0.04781014]
[1720958560445,2.49213,3210.1,3209.7,0.04781014]
[1720958561113,2.49213,3210.1,3209.4,9.78265]
[1720958561316,2.49213,3210.1,3209.8,0.04770262]
[1720958561637,2.49213,3210.1,3209.9,0.0475951]
[1720958562005,2.49213,3210.1,3209.4,9.78265]
[1720958562206,2.49213,3210.1,3210.0,0.04766692]
[1720958562436,3.234582,3210.1,3209.4,9.78265]
[1720958562738,2.49213,3210.1,3210.0,0.04766692]
[1720958562917,2.49213,3210.1,3209.4,9.78265]
[1720958563118,2.49213,3210.1,3210.0,0.04766692]
[1720958563331,2.49213,3210.1,3209.4,9.78265]
[1720958563641,2.81829917,3210.1,3209.4,9.78265]
[1720958563844,0.0778882,3210.0,3209.5,0.04820455]
[1720958564515,2.81829917,3210.1,3209.5,0.04820455]
[1720958566839,0.07788818,3210.0,3209.5,0.04820455]
[1720958570919,2.81829917,3210.1,3209.5,0.04820455]
[1720958573434,2.81829917,3210.1,3209.5,2.54079455]
[1720958578520,0.07788822,3210.0,3209.5,2.54079455]
[1720958580318,2.81829917,3210.1,3209.5,2.54079455]
[1720958581154,0.0778882,3210.0,3209.5,2.54079455]
[1720958581359,0.32616917,3210.1,3209.5,2.54079455]
[1720958583159,0.32616917,3210.1,3209.6,4.8911]
[1720958583352,0.32616917,3210.1,3209.7,0.0479717]
[1720958584876,0.32616917,3210.1,3209.7,2.5404017]
[1720958585649,0.32616917,3210.1,3209.7,0.0479717]
[1720958589503,1.9566042,3210.1,3209.7,0.0479717]
[1720958590417,1.63043503,3210.0,3209.7,0.0479717]
[1720958590706,1.9566042,3210.1,3209.7,0.0479717]
[1720958591372,1.63043503,3210.0,3209.7,0.0479717]
[1720958592408,1.63043503,3209.8,3209.7,2.5404117]
[1720958592589,1.63043503,3209.8,3209.7,5.5423677]
[1720958592791,1.63352076,3210.0,3209.9,2.49228]
[1720958593011,1.63352076,3210.0,3209.9,4.83842976]
[1720958593372,2.28639409,3210.1,3209.9,4.83842976]
[1720958593568,2.28886085,3210.1,3209.9,4.83842976]
[1720958594001,2.28886085,3210.1,3209.9,2.54002976]
[1720958594231,0.32616917,3210.1,3209.9,2.54002976]
[1720958594471,2.61597613,3210.1,3209.9,2.54002976]
[1720958594993,0.32616917,3210.1,3209.9,2.54002976]
[1720958595390,2.61597613,3210.1,3209.9,2.54002976]
[1720958595602,0.32616917,3210.1,3209.9,2.54002976]
[1720958596722,2.61597613,3210.1,3209.9,2.54002976]
[1720958597095,2.28980696,3210.0,3209.9,2.54002976]
[1720958597495,2.28980696,3210.0,3209.9,0.04774976]
[1720958597801,2.2920313,3210.0,3209.7,2.49237]
[1720958598003,2.2920313,3210.0,3209.8,0.04781688]
[1720958598245,2.2920313,3210.0,3209.7,2.49237]
[1720958598381,2.2920313,3210.0,3209.8,0.04781786]
[1720958598715,2.2920313,3210.0,3209.7,2.49237]
[1720958598919,2.2920313,3210.0,3209.9,0.04771034]
[1720958599423,2.29224455,3210.0,3209.7,2.49237]
[1720958599583,2.29224455,3210.0,3209.8,0.04781786]
[1720958599781,2.29224335,3210.0,3209.7,2.49237]
[1720958599985,2.29224335,3210.0,3209.8,0.04781786]
[1720958600209,2.29224335,3210.0,3209.7,2.49237]
[1720958600414,2.29224335,3210.0,3209.8,0.04781786]
[1720958600628,2.29224335,3210.0,3209.7,2.49237]
[1720958600927,2.29224335,3210.0,3209.8,0.04781786]
[1720958601240,2.61841252,3210.1,3209.8,4.79072]
[1720958601519,2.61841252,3210.1,3209.9,0.04771034]
[1720958602093,0.32616917,3210.1,3209.9,0.04771034]
[1720958602488,2.61854822,3210.1,3209.9,0.04771034]
[1720958602911,4.95094822,3210.1,3209.9,0.04771034]
[1720958603112,5.44604304,3210.1,3209.9,0.04771034]
[1720958603307,2.29237905,3210.0,3209.9,0.04771034]
[1720958604101,2.65856917,3210.1,3209.9,0.04771034]
[1720958604504,2.65856917,3210.1,3209.6,2.49251]
[1720958604700,1.96479461,3209.7,3209.6,2.49251]
[1720958605702,1.96438668,3209.7,3209.6,2.49251]
[1720958609237,1.96440111,3209.7,3209.6,2.49251]
[1720958609650,2.2918013,3209.9,3209.6,2.49251]
[1720958609940,2.65856917,3210.1,3209.6,2.49251]
[1720958609941,0.32616917,3210.1,3210.0,2.49221]
[1720958610455,1.96428327,3210.1,3210.0,4.98442]
[1720958610606,1.96428327,3210.3,3210.2,4.9841]
[1720958610908,1.96428327,3210.4,3210.3,5.48235]
[1720958611120,2.29055881,3210.5,3210.4,2.4919]
[1720958611339,1.96428327,3210.7,3210.3,2.88151]
[1720958611555,1.96428327,3210.8,3210.7,2.49166]
[1720958611704,0.32628855,3211.0,3210.8,2.49159]
[1720958611898,1.96383036,3210.9,3210.8,2.49159]
[1720958612106,0.32628855,3211.0,3210.9,2.49151]
[1720958612335,2.28887677,3211.0,3210.9,2.49151]
[1720958612634,0.32628855,3211.0,3210.9,2.49151]
[1720958613048,0.32628855,3211.0,3210.9,4.98302]
[1720958613308,1.96064623,3211.0,3210.9,4.98302]
[1720958613460,1.96064623,3211.0,3210.9,5.481322]
[1720958613659,1.63435768,3211.1,3211.0,4.98286]
[1720958613816,2.3623,3211.8,3211.1,4.9827]
[1720958613817,1.63435768,3211.2,3211.1,4.9827]
[1720958614022,1.63416209,3211.3,3211.2,2.49128]
[1720958614235,1.63416209,3211.4,3211.3,2.4912]
[1720958614436,1.63416209,3211.4,3211.3,2.54312942]
[1720958614949,2.28888967,3211.7,3211.4,2.49112]
[1720958614950,1.63416209,3211.5,3211.4,2.49112]
[1720958615130,1.63416209,3211.6,3211.5,2.49104]
[1720958615326,1.63189639,3211.6,3211.5,2.49104]
[1720958615628,1.63190391,3211.6,3211.5,2.54272774]
[1720958616362,1.95817526,3211.7,3211.5,2.54272774]
[1720958617557,1.95817526,3211.7,3211.6,2.49097]
[1720958617761,0.32627135,3211.7,3211.6,2.49097]
[1720958617970,0.32627135,3211.7,3211.6,2.54227772]
[1720958619478,0.32627135,3211.7,3211.6,0.05130772]
[1720958629879,0.32627135,3211.7,3211.6,2.54227772]
[1720958635384,0.32627135,3211.7,3211.6,5.53657949]
[1720958635583,0.32627135,3211.7,3211.6,5.03324772]
[1720958636394,2.3623,3212.2,3212.0,2.49065]
[1720958636765,0.32625392,3212.1,3212.0,2.49065]
[1720958637983,0.32625392,3212.1,3212.0,4.98131]
[1720958642408,2.60725392,3212.1,3212.0,2.49065]
[1720958644085,2.60725392,3212.1,3211.8,4.98153]
[1720958644282,0.32625392,3212.1,3211.8,4.98153]
[1720958644506,0.32625392,3212.1,3211.9,2.49072]
[1720958653206,0.32625392,3212.1,3211.9,2.988867]
[1720958655199,1.95749854,3212.1,3211.9,2.49072]
[1720958655396,1.95749854,3212.1,3212.0,2.49066]
[1720958655648,0.32625392,3212.1,3212.0,2.49066]
[1720958656737,0.32625392,3212.1,3212.0,4.98132]
[1720958656900,0.32625392,3212.1,3212.0,5.707402]
[1720958657643,1.63124462,3212.2,3212.1,4.98116]
[1720958659226,1.95749355,3212.4,3212.3,2.49036]
[1720958659409,0.32620982,3212.5,3212.3,2.49036]
[1720958665907,0.32620982,3212.5,3212.4,2.49034]
[1720958667162,2.28742685,3212.5,3212.4,2.49034]
[1720958667314,0.32620982,3212.5,3212.4,5.47875]
[1720958667514,0.32620982,3212.5,3212.4,4.98068]
[1720958667714,2.28742685,3212.5,3212.4,4.98068]
[1720958667945,0.32620982,3212.5,3212.4,4.98068]
[1720958669015,2.28742685,3212.5,3212.4,4.98068]
[1720958669215,2.28742685,3212.5,3212.4,2.49034]
[1720958669439,4.54112685,3212.5,3212.4,2.49034]
[1720958670133,4.54112685,3212.5,3212.2,2.4905]
[1720958670134,2.57990982,3212.5,3212.2,2.49045]
[1720958670441,1.96102214,3212.4,3212.2,2.49045]
[1720958670653,1.96102214,3212.3,3212.2,2.49045]
[1720958670972,1.96107658,3212.3,3212.2,2.49045]
[1720958671147,2.57990982,3212.5,3212.2,2.49045]
[1720958671148,1.96107658,3212.4,3212.2,2.49045]
[1720958673867,2.57990982,3212.5,3212.2,2.49045]
[1720958673868,1.96107658,3212.3,3212.2,2.49045]
[1720958674038,1.96107658,3212.4,3212.2,2.49045]
[1720958674368,1.96138593,3212.4,3212.2,2.49045]
[1720958675136,1.96138593,3212.3,3212.2,2.49045]
[1720958676134,4.86819341,3212.5,3212.2,2.49045]
[1720958677574,2.57990982,3212.5,3212.2,2.49045]
[1720958677868,4.86887705,3212.5,3212.2,2.49045]
[1720958678072,4.86887719,3212.5,3212.2,2.49045]
[1720958680840,4.86973497,3212.5,3212.2,2.49045]
[1720958682836,1.96314765,3212.3,3212.2,2.49045]
[1720958683039,2.28982515,3212.4,3212.2,2.49045]
[1720958683276,4.86973497,3212.5,3212.2,2.49045]
[1720958683977,1.96317978,3212.3,3212.2,2.49045]
[1720958684180,2.57990982,3212.5,3212.2,2.49045]
[1720958684349,4.87035326,3212.5,3212.2,2.49045]
[1720958685892,2.29044344,3212.4,3212.2,2.49045]
[1720958686183,2.57990982,3212.5,3212.2,2.49045]
[1720958686359,2.29049277,3212.4,3212.2,2.49045]
[1720958686553,4.87040259,3212.5,3212.2,2.49045]
[1720958686869,2.29049277,3212.4,3212.2,2.49045]
[1720958687671,2.29054153,3212.4,3212.2,2.49045]
[1720958688775,2.57990982,3212.5,3212.2,2.49045]
[1720958688776,4.87045135,3212.5,3212.2,2.49045]
[1720958689885,2.28949956,3212.5,3212.4,2.49034]
[1720958690248,0.32620982,3212.5,3212.4,4.98068]
[1720958691158,1.96301197,3212.7,3212.6,4.98038]
[1720958691360,1.96301197,3212.7,3212.3,4.80887]
[1720958691361,2.28981372,3213.1,3212.8,2.48997]
[1720958691564,2.61599565,3213.1,3212.8,2.48997]
[1720958692163,1.96225306,3212.9,3212.8,2.48997]
[1720958693493,1.96225306,3212.9,3212.8,2.987978]
[1720958693658,1.96225306,3213.0,3212.9,2.48996]
[1720958694195,2.3767,3213.0,3212.9,2.48996]
[1720958695180,2.61506643,3213.1,3212.9,2.48996]
[1720958695392,0.32618193,3213.1,3212.9,2.48996]
[1720958696553,1.96130607,3213.0,3212.9,2.48996]
[1720958697579,1.96112167,3213.0,3212.9,2.48996]
[1720958698588,2.3767,3213.0,3212.9,2.48996]
[1720958700656,2.3767,3213.0,3212.7,2.49011]
[1720958700932,1.96104468,3212.8,3212.7,2.49011]
[1720958701100,4.66449801,3213.0,3212.7,2.49011]
[1720958701391,1.96110645,3212.8,3212.7,2.49011]
[1720958701597,1.96110645,3212.9,3212.7,2.988146]
[1720958701893,1.96110645,3213.0,3212.7,2.988146]
[1720958702189,1.96110645,3212.9,3212.7,2.988146]
[1720958702394,0.32618193,3213.1,3212.8,2.49003]
[1720958702395,1.96110645,3213.0,3212.8,2.49003]
[1720958702703,1.96110645,3213.0,3212.9,2.48996]
[1720958702856,2.28728838,3213.1,3213.0,2.48988]
[1720958703385,2.2867538,3213.1,3213.0,4.97976]
[1720958703927,2.28653067,3213.1,3213.0,4.97976]
[1720958704533,0.32618193,3213.1,3213.0,4.97976]
[1720958708527,2.28590866,3213.1,3213.0,2.48988]
[1720958708920,4.59720866,3213.1,3212.8,2.49003]
[1720958709307,1.95972673,3213.0,3212.8,2.49003]
[1720958709729,1.95972673,3212.9,3212.8,2.49003]
[1720958709893,2.63748193,3213.1,3212.6,4.98031]
[1720958710235,1.95971541,3212.9,3212.6,4.98031]
[1720958710430,1.95971541,3212.9,3212.6,5.98556432]
[1720958710725,1.63309535,3212.7,3212.6,3.49538432]
[1720958710925,1.95971541,3212.9,3212.6,2.49013]
[1720958711958,1.95971541,3212.8,3212.4,19.47]
[1720958712247,1.95971541,3212.5,3212.3,7.29]
[1720958713253,2.3113,3212.6,3212.3,7.29]
[1720958713437,1.96005929,3212.5,3212.3,7.29]
[1720958714357,1.96005929,3212.6,3212.3,7.29]
[1720958714672,1.96005929,3212.6,3212.3,8.16543929]
[1720958715231,1.96005929,3212.6,3212.3,0.87543929]
[1720958715432,1.63328299,3212.5,3212.4,4.98061]
[1720958715632,1.63328299,3212.6,3212.5,2.49027]
[1720958716585,1.63319343,3212.6,3212.4,4.84907]
[1720958716934,0.3261944,3212.7,3212.6,2.49019]
[1720958717569,2.28602811,3212.7,3212.6,2.49019]
[1720958717868,2.28602811,3212.7,3212.4,2.49027]
[1720958719448,1.95983371,3212.6,3212.4,2.49027]
[1720958719790,1.96013929,3212.6,3212.4,2.49027]
[1720958720075,1.96013936,3212.6,3212.4,2.49027]
[1720958721040,1.96013936,3212.5,3212.2,4.98093]
[1720958721387,1.96013936,3212.4,3212.2,2.49044]
[1720958721686,2.61302365,3212.7,3212.2,2.49044]
[1720958721687,1.96013936,3212.5,3212.2,2.49044]
[1720958721841,1.96013936,3212.4,3212.2,2.49044]
[1720958722479,1.96013936,3212.5,3212.2,2.49044]
[1720958725690,2.3394,3212.4,3212.2,2.49044]
[1720958726494,1.96050542,3212.5,3212.3,2.49042]
[1720958726671,1.63369335,3212.4,3212.3,2.49042]
[1720958727473,1.63371942,3212.4,3212.3,2.49042]
[1720958728590,1.96050542,3212.6,3212.3,2.49042]
[1720958728776,1.96050542,3212.6,3212.3,3.2682767]
[1720958729622,1.96072874,3212.6,3212.3,3.2682767]
[1720958729984,2.6655944,3212.7,3212.3,3.2682767]
[1720958730284,1.96068825,3212.6,3212.3,3.2682767]
[1720958730713,2.6655944,3212.7,3212.3,3.2682767]
[1720958730714,1.96068825,3212.5,3212.3,3.2682767]
[1720958730923,1.96068825,3212.5,3212.2,2.49044]
[1720958731078,1.96068825,3212.4,3212.2,2.49044]
[1720958732775,1.96098781,3212.4,3212.2,2.49044]
[1720958733024,1.96097872,3212.4,3212.2,2.49044]
[1720958733724,1.96097872,3212.4,3212.0,2.49065]
[1720958733935,1.96097872,3212.3,3212.0,2.49065]
[1720958734090,4.30037872,3212.3,3212.0,2.49065]
[1720958734290,1.96097872,3212.2,3212.0,2.49065]
[1720958735885,1.96097872,3212.2,3211.8,7.29]
[1720958736087,1.96106133,3212.0,3211.8,7.29]
[1720958736319,2.3394,3211.9,3211.8,7.29]
[1720958739139,4.30046133,3211.9,3211.7,19.47]
[1720958739341,2.3394,3211.9,3211.7,19.47]
[1720958739552,1.96026528,3211.8,3211.7,19.47]
[1720958741555,4.29966528,3211.9,3211.7,19.47]
[1720958741732,1.96026528,3212.0,3211.7,21.417]
[1720958742042,1.63235538,3211.9,3211.7,21.417]
[1720958742644,2.3394,3212.2,3211.7,21.417]
[1720958742849,1.63224187,3211.9,3211.7,21.417]
[1720958743153,1.632258,3211.9,3211.7,21.417]
[1720958744229,1.632258,3211.9,3211.8,2.29055908]
[1720958744429,1.632258,3212.0,3211.8,4.78135908]
[1720958744611,0.32622354,3212.4,3211.9,2.49073]
[1720958744612,1.632258,3212.1,3211.9,2.49073]
[1720958745926,1.63213031,3212.2,3211.9,2.49073]
[1720958746116,1.63212884,3212.2,3211.9,2.49073]
[1720958746451,0.32622354,3212.4,3211.9,2.49073]
[1720958746650,1.63221648,3212.0,3211.9,2.49073]
[1720958749333,1.63234108,3212.0,3211.9,2.49073]
[1720958749516,4.3839093,3212.2,3211.9,2.49073]
[1720958750659,4.3839093,3212.2,3211.7,2.49083]
[1720958750847,1.63268768,3211.8,3211.7,2.49083]
[1720958752117,1.63268768,3211.8,3211.6,2.49094]
[1720958752732,2.4251,3211.7,3211.6,2.49094]
[1720958753853,2.4251,3211.7,3211.4,3.0]
[1720958753854,2.4251,3211.7,3211.4,5.49107]
[1720958754167,1.633317,3211.6,3211.5,0.05827977]
[1720958754368,4.38485319,3211.7,3211.5,0.05827977]
[1720958754521,4.38485319,3211.7,3211.2,7.29]
[1720958754723,1.95975319,3211.6,3211.3,0.05125306]
[1720958754943,1.95975319,3211.6,3211.2,7.29]
[1720958755142,1.63350628,3211.3,3211.2,7.29]
[1720958755959,2.4251,3211.7,3211.2,7.29]
[1720958756254,1.63337211,3211.3,3211.2,7.29]
[1720958756554,1.63328565,3211.3,3211.2,7.29]
[1720958756764,1.63328565,3211.3,3211.2,8.81749338]
[1720958756933,1.63328565,3211.3,3211.2,1.52749338]
[1720958757761,1.63328565,3211.3,3211.1,21.96133]
[1720958758264,1.63328565,3211.2,3211.1,21.96133]
[1720958758479,1.63328565,3211.3,3211.1,21.96133]
[1720958759423,1.63302376,3211.3,3211.1,21.96133]
[1720958759622,1.95962851,3211.6,3211.1,21.96133]
[1720958759623,4.05812376,3211.2,3211.1,21.96133]
[1720958760057,4.05812376,3211.2,3211.1,19.47]
[1720958760058,2.4251,3211.2,3211.1,19.47]
[1720958760761,2.4251,3211.4,3211.1,19.47]
[1720958760948,2.4251,3211.2,3211.1,19.47]
[1720958761471,4.91638,3211.2,3211.1,19.47]
[1720958762738,7.40766,3211.2,3211.1,19.47]
[1720958763064,2.49149,3211.0,3210.6,7.29]
[1720958763233,1.63213805,3210.7,3210.4,19.47]
[1720958763576,1.63213805,3210.9,3210.5,2.49182]
[1720958763755,1.63213805,3211.2,3210.7,2.49166]
[1720958764068,1.63213805,3211.3,3210.8,2.54352232]
[1720958764273,1.63213805,3211.4,3210.8,2.54352232]
[1720958765484,4.91608,3211.6,3210.8,2.54352232]
[1720958765691,1.63142097,3211.4,3210.8,3.28369055]
[1720958766867,1.63142097,3211.3,3210.8,3.28369055]
[1720958767076,1.63142097,3211.3,3210.9,2.49148]
[1720958767384,1.63142097,3211.3,3211.0,0.05909373]
[1720958767537,1.63142097,3211.4,3211.0,0.05909373]
[1720958767739,1.63142097,3211.3,3211.0,0.05909373]
[1720958768154,4.91608,3211.6,3211.0,0.05909373]
[1720958768355,1.63127455,3211.4,3211.0,0.05909373]
[1720958769585,1.63127455,3211.3,3211.0,0.05909373]
[1720958769805,1.95749806,3211.3,3211.0,0.05909373]
[1720958770757,1.63127455,3211.2,3211.0,0.05909373]
[1720958771555,1.63136654,3211.2,3211.0,0.05909373]
[1720958774295,4.09016654,3211.1,3211.0,0.05909373]
[1720958774457,4.09016654,3211.1,3210.7,2.49166]
[1720958774653,4.09016654,3211.1,3210.8,0.05188451]
[1720958774850,2.4588,3211.1,3210.6,7.29]
[1720958775054,1.63172883,3211.0,3210.7,0.0520054]
[1720958775292,1.63172883,3210.9,3210.7,0.0520054]
[1720958775495,1.63172883,3210.8,3210.7,0.0520054]
[1720958776901,1.63172883,3210.9,3210.7,0.0520054]
[1720958777266,1.63172883,3210.8,3210.7,0.0520054]
[1720958777492,1.63172883,3210.9,3210.7,0.0520054]
[1720958778385,1.63201053,3211.0,3210.7,0.0520054]
[1720958778892,1.6319313,3211.0,3210.7,0.0520054]
[1720958779562,1.6319313,3210.9,3210.7,0.0520054]
[1720958780184,1.6319313,3211.0,3210.7,0.0520054]
[1720958781095,1.6319313,3211.0,3210.5,21.96182]
[1720958781269,1.6319313,3211.0,3210.7,1.73030018]
[1720958781480,2.49138,3211.1,3210.8,0.05191]
[1720958781665,1.63223572,3211.0,3210.7,1.73030018]
[1720958781864,1.63223572,3211.0,3210.8,0.05191]
[1720958782059,1.63223572,3211.0,3210.7,1.73030018]
[1720958782367,1.63223572,3211.0,3210.8,0.22494002]
[1720958782700,1.63223572,3211.2,3210.8,2.60404002]
[1720958783484,1.95845923,3211.3,3211.0,2.49142]
[1720958783687,1.95845923,3211.3,3211.1,0.05150624]
[1720958783905,1.63223572,3211.2,3211.1,0.05150624]
[1720958784204,2.78502351,3211.3,3211.1,0.05150624]
[1720958784413,1.63216271,3211.2,3211.1,0.05150624]
[1720958784910,2.78502351,3211.3,3211.1,0.05150624]
[1720958786593,1.63223897,3211.2,3211.1,0.05150624]
[1720958786891,2.78502351,3211.3,3211.1,0.05150624]
[1720958787080,1.63224423,3211.2,3211.1,0.05150624]
[1720958787479,2.78502351,3211.3,3211.1,0.05150624]
[1720958789600,1.63251002,3211.2,3211.1,0.05150624]
[1720958789903,2.78502351,3211.3,3211.1,0.05150624]
[1720958792204,4.74472884,3211.3,3211.1,0.05150624]
[1720958792502,1.95970533,3211.2,3211.1,0.05150624]
[1720958793295,2.78502351,3211.3,3210.8,2.49158]
[1720958793618,4.23057069,3211.2,3210.9,0.05172251]
[1720958794766,2.2701,3211.2,3210.9,0.05172251]
[1720958795008,4.23097796,3211.2,3210.9,0.05172251]
[1720958795513,1.96087796,3211.1,3210.9,0.05172251]
[1720958797301,1.96087796,3211.0,3210.9,0.05172251]
[1720958797508,1.96087796,3211.1,3210.9,0.05172251]
[1720958797913,4.23097796,3211.2,3210.9,0.05172251]
[1720958798228,2.2701,3211.2,3210.9,0.05172251]
[1720958798373,0.32622351,3211.3,3211.0,5.23716025]
[1720958798374,1.96220939,3211.1,3211.0,5.23716025]
[1720958798573,1.63528802,3211.2,3211.1,7.3766]
[1720958799012,1.63528802,3211.2,3211.1,7.42808963]
[1720958799373,0.32622351,3211.3,3211.2,2.49128]
[1720958799913,0.32622351,3211.3,3211.2,2.54264877]
[1720958800206,0.32622351,3211.3,3211.2,3.31087167]
[1720958801197,0.32622351,3211.3,3211.2,2.54264877]
[1720958801388,2.2884329,3211.3,3211.2,2.54264877]
[1720958801584,0.32622351,3211.3,3211.2,2.54264877]
[1720958801877,2.28894394,3211.3,3211.2,2.54264877]
[1720958802078,2.28890195,3211.3,3211.2,2.54264877]
[1720958803569,0.32622351,3211.3,3211.2,2.54264877]
[1720958805026,2.28909647,3211.3,3211.2,2.54264877]
[1720958805524,0.32622351,3211.3,3211.2,2.54264877]
[1720958805729,0.32622351,3211.3,3211.2,0.05136877]
[1720958806024,0.32622351,3211.3,3210.9,2.49148]
[1720958806195,0.32622351,3211.3,3211.2,0.05136877]
[1720958806395,0.32622351,3211.3,3210.9,2.49148]
[1720958806589,0.32622351,3211.3,3211.2,0.05135215]
[1720958806830,0.32622351,3211.3,3210.9,2.49148]
[1720958806831,2.61653951,3211.3,3210.9,2.49148]
[1720958806992,2.61653951,3211.3,3211.2,0.05135325]
[1720958807193,2.61653951,3211.3,3210.9,2.49148]
[1720958807498,1.96313104,3211.1,3210.9,2.49148]
[1720958808006,1.96313104,3211.0,3210.9,2.49148]
[1720958808407,1.96325221,3211.0,3210.9,2.49148]
[1720958809136,1.96325221,3211.0,3210.9,2.54320472]
[1720958810325,2.29046091,3211.2,3210.9,2.54320472]
[1720958810525,0.32622351,3211.3,3210.9,2.54320472]
[1720958810526,1.96374662,3211.0,3210.9,2.54320472]
[1720958810733,2.29046091,3211.2,3210.9,2.54320472]
[1720958811701,2.2910311,3211.2,3210.9,2.54320472]
[1720958812240,0.32622351,3211.3,3210.9,2.54320472]
[1720958812241,1.96375108,3211.0,3210.9,2.54320472]
[1720958813530,2.29104293,3211.2,3210.9,2.54320472]
[1720958814602,2.2584,3211.1,3210.9,0.05172472]
[1720958814802,2.29104293,3211.0,3210.9,0.05172472]
[1720958815106,4.74978,3211.1,3210.9,0.05173802]
[1720958815324,4.74978,3211.1,3210.6,7.29]
[1720958815533,2.29139841,3210.9,3210.7,0.0519798]
[1720958815732,4.74978,3211.1,3210.7,0.0519798]
[1720958815733,2.29139841,3211.0,3210.7,0.0519798]
[1720958816330,2.61767465,3211.0,3210.7,0.0519798]
[1720958816702,2.61767465,3211.0,3210.5,2.49178]
[1720958816907,1.96380002,3210.7,3210.6,0.05211732]
[1720958818297,0.32627624,3211.0,3210.6,0.05211732]
[1720958818510,1.96365427,3210.7,3210.6,0.05211732]
[1720958821170,1.96347847,3210.7,3210.6,0.05211732]
[1720958823231,2.29072488,3210.9,3210.6,0.05211732]
[1720958823458,1.96333732,3210.7,3210.6,0.05211732]
[1720958824163,0.32627624,3211.0,3210.6,0.05211732]
[1720958824467,1.96333831,3210.7,3210.6,0.05211732]
[1720958824652,0.32627624,3211.0,3210.6,0.05211732]
[1720958824854,1.96328283,3210.7,3210.6,0.05211732]
[1720958825231,2.29049664,3210.9,3210.6,0.05211732]
[1720958825432,1.96317471,3210.7,3210.6,0.05211732]
[1720958825865,2.29049664,3210.9,3210.6,0.05211732]
[1720958826165,2.29049664,3210.9,3210.3,4.98387]
[1720958826461,1.6358408,3210.4,3210.3,3.954987]
[1720958826963,1.96318529,3210.6,3210.3,3.954987]
[1720958827670,1.63572519,3210.4,3210.3,6.446897]
[1720958827845,1.63572519,3210.4,3210.3,3.954967]
[1720958830733,2.61629151,3211.0,3210.4,2.49189]
[1720958830734,0.32627624,3211.0,3210.4,2.49189]
[1720958830952,1.96236636,3210.7,3210.4,2.49189]
[1720958832834,2.4749,3210.6,3210.2,2.49205]
[1720958833168,1.63534677,3210.3,3210.2,2.49205]
[1720958834757,1.63534677,3210.4,3210.2,2.49205]
[1720958835356,1.63534677,3210.3,3210.2,2.49205]
[1720958835669,1.63534677,3210.3,3210.2,3.290475]
[1720958837570,1.6351585,3210.3,3210.2,3.290475]
[1720958837963,1.6351017,3210.3,3210.2,3.290475]
[1720958838677,1.6351017,3210.3,3210.1,3.0]
[1720958838978,4.43702204,3210.6,3210.0,5.4922]
[1720958838979,1.6351017,3210.2,3210.0,5.4922]
[1720958839180,1.6351017,3210.1,3209.8,5.4923]